fUST/lending_fUST_20251010
["ID","MTS","AMOUNT","RATE_DAILY","PERIOD"]
[390586927,1760093449757,-500.0,0.00016712,2]
[390586928,1760093449766,-207.18,0.00016712,2]
[390586929,1760093449776,-821.28,0.00016712,2]
[390586930,1760093449787,-500.0,0.00016712,2]
[390586931,1760093449797,-500.0,0.00016712,2]
[390586932,1760093449806,-2534.43,0.00016712,2]
[390586933,1760093449816,-441.73801122,0.00016712,2]
[390586934,1760093449825,-500.0,0.00016712,2]
[390586935,1760093449835,-500.0,0.00016712,2]
[390586936,1760093449844,-500.0,0.00016712,2]
[390586937,1760093449854,-488.9120231,0.00016712,2]
[390586938,1760093449863,-335.48160139,0.00016712,2]
[390586939,1760093449872,-500.0,0.00016712,2]
[390586940,1760093449882,-5713.03,0.00016712,2]
[390586941,1760093449892,-5042.56,0.00016712,2]
[390586942,1760093449902,-500.0,0.00016712,2]
[390586943,1760093449911,-313.55483031,0.00016712,2]
[390586944,1760093449921,-680.95,0.00016712,2]
[390586945,1760093449931,-214.88,0.00016712,2]
[390586946,1760093449942,-500.0,0.00016712,2]
[390586947,1760093449951,-794.01,0.00016712,2]
[390586948,1760093449961,-942.56,0.00016712,2]
[390586949,1760093449971,-228.59,0.00016712,2]
[390586950,1760093449981,-500.0,0.00016712,2]
[390586951,1760093449990,-567.23,0.00016712,2]
[390586952,1760093450000,-487.17684428,0.00016712,2]
[390586953,1760093450010,-795.61,0.00016712,2]
[390586954,1760093450025,-645.18,0.00016712,2]
[390586955,1760093450035,-500.0,0.00016712,2]
[390586956,1760093450046,-500.0,0.00016712,2]
[390586957,1760093450056,-500.0,0.00016712,2]
[390586958,1760093450066,-500.0,0.00016712,2]
[390586959,1760093450076,-500.0,0.00016712,2]
[390586960,1760093450086,-500.0,0.00016712,2]
[390586961,1760093450097,-759.68,0.00016712,2]
[390586962,1760093450109,-501.36818589,0.00016712,2]
[390586963,1760093450123,-500.0,0.00016712,2]
[390586964,1760093450133,-500.0,0.00016712,2]
[390586965,1760093450143,-500.0,0.00016712,2]
[390586966,1760093450152,-500.0,0.00016712,2]
[390586967,1760093450162,-500.0,0.00016712,2]
[390586968,1760093450171,-500.0,0.00016712,2]
[390586969,1760093450181,-1127.22,0.00016712,2]
[390586970,1760093450190,-500.0,0.00016712,2]
[390586971,1760093450200,-151.0,0.00016712,2]
[390586972,1760093450209,-151.0,0.00016712,2]
[390586973,1760093450218,-500.0,0.00016712,2]
[390586974,1760093450228,-602.08488313,0.00016712,2]
[390586975,1760093450237,-500.0,0.00016712,2]
[390586976,1760093450247,-500.0,0.00016712,2]
[390586977,1760093450256,-1222.46,0.00016712,2]
[390586978,1760093450267,-1036.04,0.00016712,2]
[390586979,1760093450278,-500.0,0.00016712,2]
[390586980,1760093450288,-500.0,0.00016712,2]
[390586981,1760093450297,-2057.59,0.00016712,2]
[390586982,1760093450308,-500.0,0.00016712,2]
[390586983,1760093450317,-500.0,0.00016712,2]
[390586984,1760093450327,-636.81915855,0.00016712,2]
[390586985,1760093450337,-500.0,0.00016712,2]
[390586986,1760093450347,-500.0,0.00016712,2]
[390586987,1760093450358,-500.0,0.00016712,2]
[390586988,1760093450367,-500.0,0.00016712,2]
[390586989,1760093450377,-2748.24,0.00016712,2]
[390586990,1760093450386,-501.07654025,0.00016712,2]
[390586991,1760093450396,-500.0,0.00016712,2]
[390586992,1760093450540,-500.0,0.00016712,2]
[390586993,1760093450551,-500.0,0.00016712,2]
[390586994,1760093450560,-1244.23,0.00016712,2]
[390586995,1760093450570,-500.0,0.00016712,2]
[390586996,1760093450579,-768.44,0.00016712,2]
[390586997,1760093450588,-3526.89,0.00016712,2]
[390586998,1760093450598,-500.0,0.00016712,2]
[390586999,1760093450608,-829.83,0.00016712,2]
[390587000,1760093450618,-500.0,0.00016712,2]
[390587001,1760093450628,-500.0,0.00016712,2]
[390587002,1760093450637,-320.003172,0.00016712,2]
[390587003,1760093450647,-500.0,0.00016712,2]
[390587004,1760093450656,-320.003172,0.00016712,2]
[390587005,1760093450666,-500.0,0.00016712,2]
[390587006,1760093450677,-500.0,0.00016712,2]
[390587007,1760093450687,-320.003172,0.00016712,2]
[390587008,1760093450698,-442.03435494,0.00016712,2]
[390587009,1760093450707,-500.0,0.00016712,2]
[390587010,1760093450718,-320.003182,0.00016712,2]
[390587011,1760093450727,-539.78,0.00016712,2]
[390587012,1760093450736,-1626.39,0.00016712,2]
[390587013,1760093450745,-500.0,0.00016712,2]
[390587014,1760093450755,-611.09,0.00016712,2]
[390587015,1760093450764,-500.0,0.00016712,2]
[390587016,1760093450774,-367.997147,0.00016712,2]
[390587017,1760093450790,-500.0,0.00016712,2]
[390587018,1760093450800,-500.0,0.00016712,2]
[390587019,1760093450809,-367.997147,0.00016712,2]
[390587020,1760093450819,-367.997147,0.00016712,2]
[390587021,1760093450828,-500.0,0.00016712,2]
[390587022,1760093450837,-367.997148,0.00016712,2]
[390587023,1760093450846,-500.0,0.00016712,2]
[390587024,1760093450855,-500.0,0.00016712,2]
[390587025,1760093450864,-500.0,0.00016712,2]
[390587026,1760093450873,-500.0,0.00016712,2]
[390587027,1760093450883,-500.0,0.00016712,2]
[390587028,1760093450892,-500.0,0.00016712,2]
[390587029,1760093450901,-500.0,0.00016712,2]
[390587030,1760093450911,-500.0,0.00016712,2]
[390587031,1760093450920,-500.0,0.00016712,2]
[390587032,1760093450930,-500.0,0.00016712,2]
[390587033,1760093450940,-151.0,0.00016712,2]
[390587034,1760093450949,-151.0,0.00016712,2]
[390587035,1760093450958,-500.0,0.00016712,2]
[390587036,1760093450968,-844.2,0.00016712,2]
[390587037,1760093450977,-4696.06,0.00016712,2]
[390587038,1760093450987,-1052.14,0.00016712,2]
[390587039,1760093450997,-504.46235689,0.00016712,2]
[390587040,1760093451007,-592.09,0.00016712,2]
[390587041,1760093451019,-2234.69,0.00016712,2]
[390587042,1760093451029,-151.0,0.00016712,2]
[390587043,1760093451039,-500.0,0.00016712,2]
[390587044,1760093451049,-500.0,0.00016712,2]
[390587045,1760093451059,-583.56,0.00016712,2]
[390587046,1760093451068,-500.0,0.00016712,2]
[390587047,1760093451078,-2206.95,0.00016712,2]
[390587048,1760093451087,-500.0,0.00016712,2]
[390587049,1760093451097,-151.0,0.00016712,2]
[390587050,1760093451107,-801.24,0.00016712,2]
[390587051,1760093451117,-511.23,0.00016712,2]
[390587052,1760093451126,-500.0,0.00016712,2]
[390587053,1760093451136,-702.14,0.00016712,2]
[390587054,1760093451145,-500.0,0.00016712,2]
[390587055,1760093451155,-502.06924811,0.00016712,2]
[390587056,1760093451165,-500.60525948,0.00016712,2]
[390587057,1760093451174,-500.0,0.00016712,2]
[390587058,1760093451183,-500.0,0.00016712,2]
[390587059,1760093451193,-2095.46,0.00016712,2]
[390587060,1760093451202,-851.5,0.00016712,2]
[390587061,1760093451212,-848.74,0.00016712,2]
[390587062,1760093451221,-500.0,0.00016712,2]
[390587063,1760093451231,-500.0,0.00016712,2]
[390587064,1760093451241,-500.0,0.00016712,2]
[390587065,1760093451250,-1154.16,0.00016712,2]
[390587066,1760093451260,-545.94,0.00016712,2]
[390587067,1760093451269,-557.1,0.00016712,2]
[390587068,1760093451279,-497.0,0.00016712,2]
[390587069,1760093451290,-500.0,0.00016712,2]
[390587070,1760093451300,-503.19870999,0.00016712,2]
[390587071,1760093451309,-500.0,0.00016712,2]
[390587072,1760093451319,-277.914755,0.00016712,2]
[390587073,1760093451329,-277.914755,0.00016712,2]
[390587074,1760093451338,-151.0,0.00016712,2]
[390587075,1760093451347,-277.914755,0.00016712,2]
[390587076,1760093451356,-500.0,0.00016712,2]
[390587077,1760093451365,-151.0,0.00016712,2]
[390587078,1760093451374,-277.914752,0.00016712,2]
[390587079,1760093451383,-151.0,0.00016712,2]
[390587080,1760093451393,-500.0,0.00016712,2]
[390587081,1760093451402,-500.0,0.00016712,2]
[390587082,1760093451411,-1898.58,0.00016712,2]
[390587083,1760093451421,-595.1,0.00016712,2]
[390587084,1760093451430,-500.0,0.00016712,2]
[390587085,1760093451439,-891.79,0.00016712,2]
[390587086,1760093451448,-500.0,0.00016712,2]
[390587087,1760093451458,-211.983586,0.00016712,2]
[390587088,1760093451467,-500.0,0.00016712,2]
[390587089,1760093451476,-211.983586,0.00016712,2]
[390587090,1760093451485,-596.82,0.00016712,2]
[390587091,1760093451494,-500.0,0.00016712,2]
[390587092,1760093451504,-1893.06,0.00016712,2]
[390587093,1760093451513,-211.983586,0.00016712,2]
[390587094,1760093451522,-729.71,0.00016712,2]
[390587095,1760093451531,-991.8,0.00016712,2]
[390587096,1760093451539,-500.0,0.00016712,2]
[390587097,1760093451548,-211.983579,0.00016712,2]
[390587098,1760093451557,-500.0,0.00016712,2]
[390587099,1760093451566,-215.65387175,0.00016712,2]
[390587100,1760093451575,-500.0,0.00016712,2]
[390587101,1760093451584,-689.43787838,0.00016749,2]
[390587102,1760093451593,-571.0,0.00016759,2]
[390587103,1760093451602,-300.0,0.00016766,2]
[390587104,1760093451611,-300.0,0.00016766,2]
[390587105,1760093451620,-300.0,0.00016766,2]
[390587106,1760093451629,-300.0,0.00016766,2]
[390587107,1760093451638,-300.0,0.00016766,2]
[390587108,1760093451647,-300.0,0.00016766,2]
[390587109,1760093451656,-300.0,0.00016766,2]
[390587110,1760093451665,-300.0,0.00016766,2]
[390587111,1760093451674,-300.0,0.00016766,2]
[390587112,1760093451683,-300.0,0.00016766,2]
[390587113,1760093451692,-300.0,0.00016766,2]
[390587114,1760093451701,-300.0,0.00016766,2]
[390587115,1760093451711,-300.0,0.00016766,2]
[390587116,1760093451720,-300.0,0.00016766,2]
[390587117,1760093451730,-300.0,0.00016766,2]
[390587118,1760093451739,-600.0,0.00016766,2]
[390587119,1760093451748,-920.0,0.00016767,2]
[390587120,1760093451757,-394.47796184,0.00016799,2]
[390587121,1760093451767,-2000.0,0.000168,2]
[390587122,1760093451776,-168.0,0.0001681,2]
[390587123,1760093451785,-920.0,0.00016822,2]
[390587124,1760093451794,-4260.0,0.00016841,2]
[390587125,1760093451803,-168.0,0.00016864,2]
[390587126,1760093451812,-920.0,0.00016876,2]
[390587127,1760093451821,-177.41767855,0.00016886,2]
[390587128,1760093451831,-689.43787838,0.00016886,2]
[390587129,1760093451840,-303.95680994,0.000169,2]
[390587130,1760093451849,-1041.66666667,0.00016907,2]
[390587131,1760093451857,-402.20179238,0.00016907,2]
[390587132,1760093451867,-160.0,0.00016907,2]
[390587133,1760093451875,-234.32063665,0.00016907,2]
[390587134,1760093451885,-160.0,0.00016907,2]
[390587135,1760093451894,-160.0,0.00016907,2]
[390587136,1760093451903,-417.15472785,0.00016907,2]
[390587137,1760093451912,-920.0,0.00016931,2]
[390587138,1760093451921,-168.0,0.00016931,2]
[390587139,1760093451930,-270.09877645,0.00016985,2]
[390587140,1760093451940,-591.5430505,0.00016985,2]
[390587141,1760093451949,-200.0,0.00016985,2]
[390587142,1760093451958,-500.0,0.00016986,2]
[390587143,1760093451968,-920.0,0.00016986,2]
[390587144,1760093451977,-500.0,0.00016986,2]
[390587145,1760093451987,-500.0,0.00016986,2]
[390587146,1760093451996,-500.0,0.00016986,2]
[390587147,1760093452005,-728.67,0.00016986,2]
[390587148,1760093452015,-807.32,0.00016986,2]
[390587149,1760093452031,-500.0,0.00016986,2]
[390587150,1760093452041,-500.0,0.00016986,2]
[390587151,1760093452051,-500.0,0.00016986,2]
[390587152,1760093452061,-500.0,0.00016986,2]
[390587153,1760093452070,-518.55,0.00016986,2]
[390587154,1760093452079,-300.0,0.00016986,2]
[390587155,1760093452089,-500.0,0.00016986,2]
[390587156,1760093452101,-500.0,0.00016986,2]
[390587157,1760093452110,-500.0,0.00016986,2]
[390587158,1760093452119,-359.82968162,0.00016986,2]
[390587159,1760093452128,-500.0,0.00016986,2]
[390587160,1760093452137,-500.0,0.00016986,2]
[390587161,1760093452146,-500.0,0.00016986,2]
[390587162,1760093452156,-325.48,0.00016986,2]
[390587163,1760093452165,-500.0,0.00016986,2]
[390587164,1760093452174,-500.0,0.00016986,2]
[390587165,1760093452183,-940.11,0.00016986,2]
[390587166,1760093452192,-500.0,0.00016986,2]
[390587167,1760093452201,-350.32,0.00016986,2]
[390587168,1760093452210,-286.06710445,0.00016986,2]
[390587169,1760093452220,-500.0,0.00016986,2]
[390587170,1760093452230,-966.08,0.00016986,2]
[390587171,1760093452239,-1020.76,0.00016986,2]
[390587172,1760093452248,-238.15149743,0.00016986,2]
[390587173,1760093452257,-513.78,0.00016986,2]
[390587174,1760093452266,-500.0,0.00016986,2]
[390587175,1760093452275,-500.0,0.00016986,2]
[390587176,1760093452284,-500.0,0.00016986,2]
[390587177,1760093452293,-500.0,0.00016986,2]
[390587178,1760093452302,-500.0,0.00016986,2]
[390587179,1760093452311,-612.96,0.00016986,2]
[390587180,1760093452320,-500.0,0.00016986,2]
[390587181,1760093452329,-499.17671403,0.00016986,2]
[390587182,1760093452338,-501.73212734,0.00016986,2]
[390587183,1760093452348,-500.0,0.00016986,2]
[390587184,1760093452357,-208.18294604,0.00016986,2]
[390587185,1760093452366,-339.62772809,0.00016986,2]
[390587186,1760093452375,-525.57225404,0.00016986,2]
[390587187,1760093452384,-892.16,0.00016986,2]
[390587188,1760093452394,-500.0,0.00016986,2]
[390587189,1760093452404,-188.56000202,0.00016986,2]
[390587190,1760093452413,-509.96,0.00016986,2]
[390587191,1760093452423,-500.0,0.00016986,2]
[390587192,1760093452432,-500.0,0.00016986,2]
[390587193,1760093452441,-500.0,0.00016986,2]
[390587194,1760093452450,-461.63971521,0.00016986,2]
[390587195,1760093452459,-712.95,0.00016986,2]
[390587196,1760093452468,-161.80879077,0.00016986,2]
[390587197,1760093452478,-500.0,0.00016986,2]
[390587198,1760093452487,-500.0,0.00016986,2]
[390587199,1760093452496,-506.32865722,0.00016986,2]
[390587200,1760093452505,-500.0,0.00016986,2]
[390587201,1760093452514,-500.0,0.00016986,2]
[390587202,1760093452524,-500.0,0.00016986,2]
[390587203,1760093452533,-500.0,0.00016986,2]
[390587204,1760093452542,-838.61,0.00016986,2]
[390587205,1760093452551,-500.0,0.00016986,2]
[390587206,1760093452561,-1427.17,0.00016986,2]
[390587207,1760093452571,-500.0,0.00016986,2]
[390587208,1760093452580,-987.33,0.00016986,2]
[390587209,1760093452589,-500.0,0.00016986,2]
[390587210,1760093452599,-500.0,0.00016986,2]
[390587211,1760093452608,-500.0,0.00016986,2]
[390587212,1760093452618,-500.0,0.00016986,2]
[390587213,1760093452628,-227.8891446,0.00016986,2]
[390587214,1760093452637,-500.0,0.00016986,2]
[390587215,1760093452647,-500.0,0.00016986,2]
[390587216,1760093452655,-500.0,0.00016986,2]
[390587217,1760093452665,-500.0,0.00016986,2]
[390587218,1760093452675,-1610.85,0.00016986,2]
[390587219,1760093452684,-202.28,0.00016986,2]
[390587220,1760093452695,-500.0,0.00016986,2]
[390587221,1760093452705,-500.0,0.00016986,2]
[390587222,1760093452716,-517.36172355,0.00016986,2]
[390587223,1760093452725,-500.0,0.00016986,2]
[390587224,1760093452734,-500.0,0.00016986,2]
[390587225,1760093452743,-351.79,0.00016986,2]
[390587226,1760093452752,-500.0,0.00016986,2]
[390587227,1760093452761,-1107.75,0.00016986,2]
[390587228,1760093452771,-500.0,0.00016986,2]
[390587229,1760093452780,-500.0,0.00016986,2]
[390587230,1760093452790,-500.0,0.00016986,2]
[390587231,1760093452799,-500.0,0.00016986,2]
[390587232,1760093452808,-4395.62,0.00016986,2]
[390587233,1760093452818,-302.88,0.00016986,2]
[390587234,1760093452828,-500.0,0.00016986,2]
[390587235,1760093452837,-500.0,0.00016986,2]
[390587236,1760093452847,-500.0,0.00016986,2]
[390587237,1760093452856,-780.91,0.00016986,2]
[390587238,1760093452865,-500.0,0.00016986,2]
[390587239,1760093452874,-500.0,0.00016986,2]
[390587240,1760093452883,-500.0,0.00016986,2]
[390587241,1760093452893,-500.0,0.00016986,2]
[390587242,1760093452902,-424.154854,0.00016986,2]
[390587243,1760093452911,-500.0,0.00016986,2]
[390587244,1760093452921,-346.05,0.00016986,2]
[390587245,1760093452930,-2917.77,0.00016986,2]
[390587246,1760093452939,-500.0,0.00016986,2]
[390587247,1760093452948,-500.0,0.00016986,2]
[390587248,1760093452957,-500.0,0.00016986,2]
[390587249,1760093452967,-500.0,0.00016986,2]
[390587250,1760093452976,-500.0,0.00016986,2]
[390587251,1760093452986,-1512.31,0.00016986,2]
[390587252,1760093452995,-500.0,0.00016986,2]
[390587253,1760093453004,-500.0,0.00016986,2]
[390587254,1760093453013,-500.0,0.00016986,2]
[390587255,1760093453047,-500.0,0.00016986,2]
[390587256,1760093453057,-379.8090767,0.00016986,2]
[390587257,1760093453067,-500.0,0.00016986,2]
[390587258,1760093453076,-500.0,0.00016986,2]
[390587259,1760093453086,-1968.23,0.00016986,2]
[390587260,1760093453095,-500.0,0.00016986,2]
[390587261,1760093453107,-821.28,0.00016986,2]
[390587262,1760093453117,-500.0,0.00016986,2]
[390587263,1760093453126,-500.0,0.00016986,2]
[390587264,1760093453136,-2534.43,0.00016986,2]
[390587265,1760093453145,-500.0,0.00016986,2]
[390587266,1760093453154,-241.15,0.00016986,2]
[390587267,1760093453164,-500.0,0.00016986,2]
[390587268,1760093453173,-500.0,0.00016986,2]
[390587269,1760093453183,-5713.03,0.00016986,2]
[390587270,1760093453192,-5042.56,0.00016986,2]
[390587271,1760093453201,-500.0,0.00016986,2]
[390587272,1760093453211,-680.95,0.00016986,2]
[390587273,1760093453221,-500.0,0.00016986,2]
[390587274,1760093453230,-794.01,0.00016986,2]
[390587275,1760093453239,-942.56,0.00016986,2]
[390587276,1760093453249,-500.0,0.00016986,2]
[390587277,1760093453258,-567.23,0.00016986,2]
[390587278,1760093453268,-795.61,0.00016986,2]
[390587279,1760093453278,-645.18,0.00016986,2]
[390587280,1760093453287,-500.0,0.00016986,2]
[390587281,1760093453296,-500.0,0.00016986,2]
[390587282,1760093453305,-500.0,0.00016986,2]
[390587283,1760093453314,-500.0,0.00016986,2]
[390587284,1760093453323,-504.79543064,0.00016986,2]
[390587285,1760093453332,-500.0,0.00016986,2]
[390587286,1760093453341,-759.68,0.00016986,2]
[390587287,1760093453350,-500.0,0.00016986,2]
[390587288,1760093453359,-500.0,0.00016986,2]
[390587289,1760093453369,-500.0,0.00016986,2]
[390587290,1760093453379,-500.0,0.00016986,2]
[390587291,1760093453389,-500.0,0.00016986,2]
[390587292,1760093453398,-500.0,0.00016986,2]
[390587293,1760093453408,-1127.22,0.00016986,2]
[390587294,1760093453417,-500.0,0.00016986,2]
[390587295,1760093453427,-500.0,0.00016986,2]
[390587296,1760093453437,-196.68,0.00016986,2]
[390587297,1760093453447,-500.0,0.00016986,2]
[390587298,1760093453456,-1222.46,0.00016986,2]
[390587299,1760093453466,-1036.04,0.00016986,2]
[390587300,1760093453475,-500.0,0.00016986,2]
[390587301,1760093453485,-2057.59,0.00016986,2]
[390587302,1760093453494,-500.0,0.00016986,2]
[390587303,1760093453503,-500.0,0.00016986,2]
[390587304,1760093453512,-500.0,0.00016986,2]
[390587305,1760093453522,-500.0,0.00016986,2]
[390587306,1760093453531,-500.0,0.00016986,2]
[390587307,1760093453540,-500.0,0.00016986,2]
[390587308,1760093453550,-2748.24,0.00016986,2]
[390587309,1760093453559,-500.0,0.00016986,2]
[390587310,1760093453569,-500.0,0.00016986,2]
[390587311,1760093453578,-500.0,0.00016986,2]
[390587312,1760093453587,-1244.23,0.00016986,2]
[390587313,1760093453597,-500.0,0.00016986,2]
[390587314,1760093453606,-768.44,0.00016986,2]
[390587315,1760093453615,-3526.89,0.00016986,2]
[390587316,1760093453625,-500.0,0.00016986,2]
[390587317,1760093453634,-829.83,0.00016986,2]
[390587318,1760093453643,-500.0,0.00016986,2]
[390587319,1760093453652,-500.0,0.00016986,2]
[390587320,1760093453661,-500.0,0.00016986,2]
[390587321,1760093453670,-500.0,0.00016986,2]
[390587322,1760093453680,-500.0,0.00016986,2]
[390587323,1760093453689,-539.78,0.00016986,2]
[390587324,1760093453699,-1626.39,0.00016986,2]
[390587325,1760093453708,-500.0,0.00016986,2]
[390587326,1760093453718,-611.09,0.00016986,2]
[390587327,1760093453727,-514.6941495,0.00016986,2]
[390587328,1760093453737,-500.0,0.00016986,2]
[390587329,1760093453746,-500.0,0.00016986,2]
[390587330,1760093453755,-518.51,0.00016986,2]
[390587331,1760093453765,-503.42340441,0.00016986,2]
[390587332,1760093453774,-500.0,0.00016986,2]
[390587333,1760093453924,-500.0,0.00016986,2]
[390587334,1760093453934,-500.0,0.00016986,2]
[390587335,1760093453944,-500.0,0.00016986,2]
[390587336,1760093453954,-500.0,0.00016986,2]
[390587337,1760093453964,-500.0,0.00016986,2]
[390587338,1760093453974,-500.0,0.00016986,2]
[390587339,1760093453983,-500.0,0.00016986,2]
[390587340,1760093453993,-844.2,0.00016986,2]
[390587341,1760093454002,-4696.06,0.00016986,2]
[390587342,1760093454012,-1052.14,0.00016986,2]
[390587343,1760093454028,-592.09,0.00016986,2]
[390587344,1760093454038,-2234.69,0.00016986,2]
[390587345,1760093454048,-500.0,0.00016986,2]
[390587346,1760093454059,-277.06903997,0.00016986,2]
[390587347,1760093454070,-583.56,0.00016986,2]
[390587348,1760093454080,-500.0,0.00016986,2]
[390587349,1760093454090,-2206.95,0.00016986,2]
[390587350,1760093454103,-500.0,0.00016986,2]
[390587351,1760093454113,-801.24,0.00016986,2]
[390587352,1760093454123,-511.23,0.00016986,2]
[390587353,1760093454133,-500.0,0.00016986,2]
[390587354,1760093454142,-702.14,0.00016986,2]
[390587355,1760093454152,-500.0,0.00016986,2]
[390587356,1760093454163,-500.0,0.00016986,2]
[390587357,1760093454173,-500.0,0.00016986,2]
[390587358,1760093454183,-2095.46,0.00016986,2]
[390587359,1760093454193,-851.5,0.00016986,2]
[390587360,1760093454203,-848.74,0.00016986,2]
[390587361,1760093454214,-501.11596704,0.00016986,2]
[390587362,1760093454224,-500.0,0.00016986,2]
[390587363,1760093454234,-500.0,0.00016986,2]
[390587364,1760093454245,-1154.16,0.00016986,2]
[390587365,1760093454255,-545.94,0.00016986,2]
[390587366,1760093454265,-557.1,0.00016986,2]
[390587367,1760093454275,-500.0,0.00016986,2]
[390587368,1760093454284,-500.0,0.00016986,2]
[390587369,1760093454295,-500.0,0.00016986,2]
[390587370,1760093454304,-500.0,0.00016986,2]
[390587371,1760093454314,-154.80812956,0.00016986,2]
[390587372,1760093454323,-1898.58,0.00016986,2]
[390587373,1760093454332,-595.1,0.00016986,2]
[390587374,1760093454342,-500.0,0.00016986,2]
[390587375,1760093454351,-891.79,0.00016986,2]
[390587376,1760093454360,-500.0,0.00016986,2]
[390587377,1760093454370,-596.82,0.00016986,2]
[390587378,1760093454379,-267.12,0.00016986,2]
[390587379,1760093454388,-1893.06,0.00016986,2]
[390587380,1760093454398,-729.71,0.00016986,2]
[390587381,1760093454407,-991.8,0.00016986,2]
[390587382,1760093454417,-500.0,0.00016986,2]
[390587383,1760093454427,-500.0,0.00016986,2]
[390587384,1760093454436,-4291.06445377,0.00017,3]
[390587385,1760093454446,-310.0,0.00017014,2]
[390587386,1760093454455,-1003.02100515,0.00017021,2]
[390587387,1760093454464,-505.20166861,0.00017021,2]
[390587388,1760093454474,-1000.0,0.00017021,2]
[390587389,1760093454483,-1000.0,0.00017021,2]
[390587390,1760093454493,-1000.0,0.00017021,2]
[390587391,1760093454502,-652.81553816,0.00017021,2]
[390587392,1760093454512,-668.95645603,0.00017021,2]
[390587393,1760093454521,-1104.48932129,0.00017021,2]
[390587394,1760093454530,-1000.0,0.00017021,2]
[390587395,1760093454540,-1000.0,0.00017021,2]
[390587396,1760093454549,-1000.0,0.00017021,2]
[390587397,1760093454558,-1000.0,0.00017021,2]
[390587398,1760093454567,-500.0,0.00017021,2]
[390587399,1760093454577,-306.25304149,0.00017021,2]
[390587400,1760093454586,-1000.0,0.00017021,2]
[390587401,1760093454596,-501.30185518,0.00017021,2]
[390587402,1760093454605,-1000.0,0.00017021,2]
[390587403,1760093454615,-920.0,0.00017041,2]
[390587404,1760093454624,-221.0,0.00017063,2]
[390587405,1760093454633,-4260.0,0.00017081,2]
[390587406,1760093454643,-920.0,0.00017096,2]
[390587407,1760093454653,-303.95680994,0.000171,2]
[390587408,1760093454663,-151.0,0.000171,2]
[390587409,1760093454672,-920.0,0.0001715,2]
[390587410,1760093454682,-3928.4449145,0.00017183,2]
[390587411,1760093454692,-151.0,0.000172,2]
[390587412,1760093454701,-168.10077245,0.00017202,2]
[390587413,1760093454711,-920.0,0.00017205,2]
[390587414,1760093454721,-500.0,0.0001726,2]
[390587415,1760093454730,-920.0,0.0001726,2]
[390587416,1760093454740,-500.0,0.0001726,2]
[390587417,1760093454750,-500.0,0.0001726,2]
[390587418,1760093454760,-500.0,0.0001726,2]
[390587419,1760093454769,-728.67,0.0001726,2]
[390587420,1760093454778,-807.32,0.0001726,2]
[390587421,1760093454788,-414.37445842,0.0001726,2]
[390587422,1760093454799,-500.0,0.0001726,2]
[390587423,1760093454808,-500.0,0.0001726,2]
[390587424,1760093454818,-500.0,0.0001726,2]
[390587425,1760093454827,-541.1,0.0001726,2]
[390587426,1760093454837,-518.55,0.0001726,2]